bitfinex/quotes_SOLUSD_20250924
["timestamp","ask_amount","ask_price","bid_price","bid_amount"]
[1758676364079,0.66,214.78,214.74,4.65679426]
[1758676364398,0.66,214.77,214.74,16.29877991]
[1758676364595,0.66,214.76,214.74,16.29877991]
[1758676364972,0.66,214.79,214.74,16.29877991]
[1758676365270,0.66,214.78,214.74,16.29877991]
[1758676365706,0.66,214.77,214.74,4.65679426]
[1758676365908,0.66,214.76,214.74,4.65679426]
[1758676366292,2.10602557,214.75,214.7,4.65766185]
[1758676366590,0.66,214.74,214.7,16.30181648]
[1758676367184,26.0,214.76,214.7,16.30181648]
[1758676367394,26.0,214.76,214.71,0.67]
[1758676367578,26.0,214.76,214.72,0.67]
[1758676368393,26.0,214.76,214.73,16.29953895]
[1758676369096,133.9,214.79,214.74,2.11602557]
[1758676369276,133.9,214.79,214.75,0.67]
[1758676369482,0.66,214.81,214.76,0.67]
[1758676370706,0.66,214.81,214.77,4.65614378]
[1758676370884,0.66,214.81,214.77,16.29650323]
[1758676371986,0.67,214.8,214.77,4.65614378]
[1758676372187,0.67,214.79,214.77,4.65614378]
[1758676372392,2.11602557,214.78,214.74,11.64170815]
[1758676372609,0.67,214.77,214.74,11.64170815]
[1758676373702,26.0,214.78,214.74,11.64170815]
[1758676373913,26.67,214.78,214.74,11.64170815]
[1758676374580,26.0,214.78,214.74,11.64170815]
[1758676374922,0.67,214.77,214.74,11.64170815]
[1758676375708,0.67,214.77,214.73,4.65701113]
[1758676376894,0.67,214.77,214.73,16.29953895]
[1758676378394,26.0,214.78,214.74,0.7]
[1758676378603,159.9,214.78,214.74,0.7]
[1758676378996,159.9,214.78,214.75,4.65657741]
[1758676379211,159.9,214.78,214.75,16.29802094]
[1758676379507,159.9,214.78,214.75,16.99802094]
[1758676379714,159.9,214.78,214.76,0.7]
[1758676380009,159.9,214.78,214.75,16.29802094]
[1758676380207,133.9,214.78,214.75,16.29802094]
[1758676380412,26.0,214.79,214.76,0.7]
[1758676381108,26.0,214.79,214.77,0.7]
[1758676381326,0.67,214.85,214.78,2.14602557]
[1758676381607,26.0,214.84,214.79,0.7]
[1758676381810,0.67,214.83,214.78,1.44602557]
[1758676382107,0.67,214.82,214.78,1.44602557]
[1758676382309,26.0,214.84,214.78,2.14602557]
[1758676383300,26.0,214.84,214.79,16.29498579]
[1758676383502,26.0,214.84,214.8,2.14602557]
[1758676383899,159.9,214.87,214.81,0.7]
[1758676384314,133.9,214.87,214.82,1.44602557]
[1758676384617,133.9,214.87,214.82,2.14602557]
[1758676385322,134.57,214.87,214.83,16.29195177]
[1758676385900,0.67,214.86,214.83,16.29195177]
[1758676386306,133.9,214.87,214.83,16.29195177]
[1758676386621,134.57,214.87,214.83,16.29195177]
[1758676388622,0.67,214.86,214.8,11.63862377]
[1758676388808,1.44602557,214.84,214.81,4.65511009]
[1758676389122,1.44602557,214.82,214.78,4.65592699]
[1758676389319,1.44602557,214.79,214.72,4.65722801]
[1758676389519,1.44602557,214.77,214.71,52.94105723]
[1758676389726,1.44602557,214.77,214.72,14.00004667]
[1758676389923,1.44602557,214.77,214.72,14.70004667]
[1758676390119,2.11602557,214.77,214.72,14.70004667]
[1758676390424,2.11602557,214.77,214.72,0.7]
[1758676391539,2.11602557,214.77,214.73,16.29953895]
[1758676391829,0.67,214.76,214.73,16.29953895]
[1758676393729,0.67,214.76,214.73,11.64252782]
[1758676394219,1.44602557,214.77,214.71,4.65744492]
[1758676394423,0.66,214.75,214.71,4.65744492]
[1758676394630,2.10602557,214.77,214.71,4.65744492]
[1758676395434,1.44602557,214.73,214.65,0.2]
[1758676395650,1.44602557,214.71,214.65,0.2]
[1758676395934,0.66,214.72,214.65,0.89]
[1758676396507,0.66,214.71,214.67,11.64532929]
[1758676396717,0.66,214.7,214.67,11.64532929]
[1758676396927,2.10602557,214.73,214.67,11.64532929]
[1758676399026,0.66,214.72,214.67,11.64532929]
[1758676399328,0.66,214.71,214.67,11.64532929]
[1758676399536,26.66,214.7,214.66,4.65852976]
[1758676399726,1.44602557,214.71,214.66,16.99485418]
[1758676399908,2.10602557,214.73,214.67,0.69]
[1758676400113,2.10602557,214.73,214.66,16.30485418]
[1758676400332,1.44602557,214.71,214.66,16.30485418]
[1758676400536,0.67,214.7,214.66,16.30485418]
[1758676401225,0.67,214.69,214.66,16.30485418]
[1758676401543,1.44602557,214.67,214.65,36.84]
[1758676401832,2.11602557,214.71,214.65,53.81556881]
[1758676402937,0.67,214.77,214.67,1.44602557]
[1758676403242,1.44602557,214.76,214.68,0.67]
[1758676403413,2.11602557,214.76,214.68,0.67]
[1758676403614,1.44602557,214.74,214.66,0.67]
[1758676404051,1.44602557,214.72,214.65,16.50556881]
[1758676404345,0.67,214.71,214.65,16.50556881]
[1758676404845,26.67,214.71,214.65,16.50556881]
[1758676405824,2.11602557,214.7,214.65,16.50556881]
[1758676406141,0.67,214.69,214.65,16.50556881]
[1758676406556,0.67,214.68,214.65,16.50556881]
[1758676406933,1.44602557,214.7,214.65,16.50556881]
[1758676407139,2.11602557,214.7,214.65,16.50556881]
[1758676407344,2.11602557,214.7,214.65,17.17556881]
[1758676408161,0.67,214.69,214.65,16.50556881]
[1758676408470,0.67,214.68,214.65,4.85870182]
[1758676408654,0.67,214.67,214.65,0.2]
[1758676408845,26.0,214.68,214.65,4.85865061]
[1758676409066,26.0,214.68,214.65,5.52865061]
[1758676409273,1.44602557,214.7,214.65,5.52865061]
[1758676409439,0.67,214.69,214.65,4.85865061]
[1758676409638,0.67,214.68,214.65,4.85865061]
[1758676409979,2.11602557,214.72,214.66,0.67]
[1758676410444,2.11602557,214.72,214.65,16.5055176]
[1758676410643,0.67,214.71,214.65,16.5055176]
[1758676411271,26.0,214.67,214.65,16.5055176]
[1758676412068,26.0,214.67,214.65,4.85865061]
[1758676412732,26.0,214.67,214.66,0.67]
[1758676413551,26.0,214.67,214.66,5.32852976]
[1758676414772,133.9,214.7,214.66,16.97485418]
[1758676414938,133.9,214.7,214.67,0.67]
[1758676415138,26.0,214.71,214.67,0.67]
[1758676415350,0.67,214.73,214.67,0.67]
[1758676415565,0.67,214.73,214.68,4.65809577]
[1758676415848,26.67,214.72,214.68,4.65809577]
[1758676416088,0.67,214.71,214.68,4.65809577]
[1758676416452,26.0,214.72,214.68,4.65809577]
[1758676416653,26.67,214.72,214.66,16.30485418]
[1758676418640,26.67,214.72,214.67,2.11602557]
[1758676418641,26.0,214.72,214.67,2.11602557]
[1758676418849,26.0,214.72,214.68,0.67]
[1758676419176,26.0,214.72,214.69,0.67]
[1758676419750,26.0,214.72,214.7,4.65766185]
[1758676420493,26.0,214.72,214.7,5.32766185]
[1758676421074,26.0,214.72,214.7,4.65766185]
[1758676425499,26.67,214.72,214.7,4.65766185]
[1758676425669,26.0,214.72,214.7,4.65766185]
[1758676425868,26.67,214.71,214.66,16.30435385]
[1758676426088,0.67,214.7,214.66,16.30435385]
[1758676426588,0.67,214.69,214.66,16.30435385]
[1758676427097,28.25995458,214.72,214.66,16.30435385]
[1758676427298,28.92995458,214.72,214.66,16.30435385]
[1758676427502,26.67,214.72,214.66,18.56430843]
[1758676428480,26.0,214.72,214.67,0.67]
[1758676428705,26.0,214.72,214.66,18.56430843]
[1758676428878,0.67,214.71,214.66,16.30435385]
[1758676429077,0.67,214.7,214.66,16.30435385]
[1758676430311,0.67,214.69,214.66,16.30435385]
[1758676431120,26.0,214.72,214.66,16.30435385]
[1758676431121,133.9,214.75,214.67,2.93995458]
[1758676431311,133.9,214.75,214.71,2.25995458]
[1758676431493,134.57,214.75,214.71,2.25995458]
[1758676432289,134.57,214.75,214.72,16.30029805]
[1758676432604,0.67,214.74,214.72,16.30029805]
[1758676433488,26.67,214.73,214.72,4.65722801]
[1758676434492,26.0,214.72,214.69,16.30219563]
[1758676434690,26.67,214.72,214.69,16.30219563]
[1758676435126,0.67,214.71,214.69,4.6578788]
[1758676436196,0.67,214.7,214.69,4.6578788]
[1758676436397,0.67,214.7,214.66,16.3043712]
[1758676436593,28.25995458,214.72,214.66,16.3043712]
[1758676436793,28.92995458,214.72,214.66,16.9843712]
[1758676436999,26.67,214.71,214.66,16.3043712]
[1758676437202,0.67,214.7,214.66,16.3043712]
[1758676437402,0.67,214.69,214.66,16.3043712]
[1758676438296,26.67,214.71,214.66,16.3043712]
[1758676438515,0.67,214.7,214.66,16.3043712]
[1758676439417,26.0,214.71,214.66,16.3043712]
[1758676439630,26.67,214.71,214.66,16.9843712]
[1758676440330,0.67,214.74,214.67,2.93995458]
[1758676440504,26.0,214.72,214.67,2.93995458]
[1758676440701,26.0,214.72,214.68,16.98333519]
[1758676440907,26.0,214.72,214.69,0.68]
[1758676441333,26.0,214.72,214.7,0.68]
[1758676441703,133.9,214.75,214.7,0.68]
[1758676441928,133.9,214.75,214.71,2.93995458]
[1758676442122,133.9,214.75,214.72,0.68]
[1758676442817,133.9,214.75,214.72,16.30029805]
[1758676443410,133.9,214.75,214.72,16.98029805]
[1758676443729,26.0,214.77,214.73,0.68]
[1758676444218,0.67,214.79,214.74,0.68]
[1758676444423,0.67,214.82,214.75,2.93995458]
[1758676444593,0.67,214.82,214.76,0.68]
[1758676444797,0.67,214.82,214.77,16.29650323]
[1758676445100,0.67,214.86,214.79,2.25995458]
[1758676445299,26.0,214.85,214.79,2.93995458]
[1758676446621,26.0,214.85,214.81,2.25995458]
[1758676446805,26.0,214.85,214.81,2.93995458]
[1758676447427,26.0,214.87,214.83,2.25995458]
[1758676447719,26.0,214.87,214.8,39.57169459]
[1758676447899,134.57,214.9,214.85,2.25995458]
[1758676448221,26.0,214.89,214.85,2.25995458]
[1758676448403,26.0,214.89,214.86,16.28967699]
[1758676448723,0.67,214.89,214.86,16.28967699]
[1758676450311,69.58240913,214.97,214.86,16.28967699]
[1758676450512,26.67,214.93,214.87,2.25995458]
[1758676450712,26.67,214.93,214.88,2.25995458]
[1758676451019,0.67,214.93,214.88,2.93995458]
[1758676451209,0.67,214.93,214.88,0.68]
[1758676451612,0.67,214.93,214.89,2.25995458]
[1758676451810,26.0,214.95,214.89,2.25995458]
[1758676452123,26.0,214.94,214.89,2.93995458]
[1758676452312,0.67,214.95,214.89,2.93995458]
[1758676452629,26.67,214.95,214.9,16.28664494]
[1758676452829,0.7,214.94,214.9,16.28664494]
[1758676454015,0.7,214.93,214.9,16.28664494]
[1758676454813,26.7,214.95,214.9,16.28664494]
[1758676455123,0.7,214.94,214.9,16.28664494]
[1758676455703,133.9,214.95,214.9,16.28664494]
[1758676455919,133.9,214.95,214.9,17.00664494]
[1758676456117,134.6,214.95,214.9,17.00664494]
[1758676456429,26.7,214.97,214.91,2.97995458]
[1758676456819,0.7,215.0,214.93,2.25995458]
[1758676457024,0.7,215.0,214.94,16.28361402]
[1758676457219,176.43568809,215.02,214.94,16.28361402]
[1758676457421,0.7,214.99,214.94,16.28361402]
[1758676457626,0.7,214.98,214.94,16.28361402]
[1758676457823,0.7,214.97,214.94,16.28361402]
[1758676458729,26.7,214.99,214.94,16.28361402]
[1758676459037,26.0,214.99,214.94,18.5435686]
[1758676459232,26.0,214.99,214.95,0.72]
[1758676459732,133.9,215.02,214.96,2.97995458]
[1758676460036,26.0,215.03,214.98,2.25995458]
[1758676460238,26.7,215.03,214.98,2.97995458]
[1758676460832,0.7,215.05,214.98,2.25995458]
[1758676461046,0.7,215.07,215.0,2.25995458]
[1758676461215,26.7,215.07,215.01,16.27831262]
[1758676461417,0.1,215.09,215.02,2.96995458]
[1758676461915,0.1,215.09,215.04,2.25995458]
[1758676462423,26.1,215.09,215.03,2.25995458]
[1758676462631,0.1,215.09,215.04,0.71]
[1758676462830,0.8,215.09,215.04,0.71]
[1758676463224,0.1,215.09,215.05,18.53523939]
[1758676463425,0.1,215.09,215.05,19.24523939]
[1758676464331,0.1,215.09,215.07,2.25995458]
[1758676465135,0.1,215.09,215.07,2.96995458]
[1758676465341,0.1,215.09,215.08,0.71]
[1758676466227,0.1,215.09,215.08,4.64943276]
[1758676468338,0.1,215.09,215.08,5.35943276]
[1758676468820,0.1,215.09,215.08,4.64943276]
[1758676469232,0.8,215.09,215.03,16.27679858]
[1758676469436,0.8,215.09,215.04,36.56]
[1758676469823,0.7,215.08,215.04,36.56]
[1758676470019,0.7,215.07,215.03,55.09675316]
[1758676470227,0.1,215.09,215.03,55.09675316]
[1758676470555,0.1,215.09,215.03,55.80675316]
[1758676471930,0.7,215.08,215.04,36.56]
[1758676472125,0.1,215.09,215.03,52.83679858]
[1758676472322,0.7,215.07,215.03,52.83679858]
[1758676472922,0.8,215.09,215.03,55.80675316]
[1758676474031,0.1,215.09,215.04,36.56]
[1758676474614,0.8,215.09,215.04,37.27]
[1758676475247,0.1,215.09,215.05,0.71]
[1758676475545,0.1,215.09,215.07,2.25995458]
[1758676475735,0.1,215.09,215.08,0.71]
[1758676475928,0.1,215.09,215.08,5.35943276]
[1758676476733,0.1,215.09,215.08,4.64943276]
[1758676479720,0.1,215.09,215.08,5.35943276]
[1758676481148,0.1,215.09,215.08,41.91943276]
[1758676481334,0.1,215.09,215.08,41.20943276]
[1758676481534,0.1,215.09,215.08,4.64943276]
[1758676483146,0.1,215.09,215.08,6.90938734]
[1758676483363,0.1,215.09,215.06,5.35967284]
[1758676483538,0.1,215.09,215.06,4.64967284]
[1758676483735,0.8,215.09,215.06,16.27433572]
[1758676485153,0.7,215.08,215.06,4.64967284]
[1758676485328,0.7,215.07,215.05,4.65004668]
[1758676485534,0.7,215.07,214.97,13.98373226]
[1758676485535,0.7,215.06,215.0,13.06907289]
[1758676485830,0.7,215.06,215.01,36.54]
[1758676486052,26.0,215.07,215.01,37.25]
[1758676486262,0.7,215.08,215.02,1.44154678]
[1758676486467,0.7,215.07,215.02,1.44154678]
[1758676486960,0.7,215.06,215.01,36.54]
[1758676487137,0.7,215.06,215.01,38.69154678]
[1758676487335,0.7,215.06,215.01,37.25]
[1758676487547,0.7,215.06,215.01,38.69154678]
[1758676488068,0.1,215.09,215.03,1.44154678]
[1758676488944,0.8,215.09,215.03,1.44154678]
[1758676489279,0.8,215.09,215.04,16.27604165]
[1758676489441,0.7,215.08,215.04,16.27604165]
[1758676489636,0.7,215.07,215.04,16.27604165]
[1758676489842,0.7,215.06,215.04,4.65029761]
[1758676490964,26.0,215.07,215.04,4.65029761]
[1758676491269,26.7,215.07,215.04,4.65029761]
[1758676491777,26.1,215.09,215.04,16.96604165]
[1758676491944,26.8,215.09,215.04,16.96604165]
[1758676492451,0.7,215.08,215.04,16.27604165]
[1758676493044,0.1,215.09,215.04,16.96604165]
[1758676493257,0.7,215.08,215.04,16.96604165]
[1758676493546,0.7,215.08,215.04,16.27604165]
[1758676494763,0.1,215.09,215.05,2.13154678]
[1758676495285,0.1,215.09,215.06,0.69]
[1758676495965,0.1,215.09,215.07,4.64964895]
[1758676496998,0.1,215.09,215.08,0.69]
[1758676497881,0.1,215.09,215.08,5.33943276]
[1758676501087,1e-08,215.09,215.08,5.33943276]
[1758676501261,1e-08,215.09,215.08,18.93502677]
[1758676501988,1e-08,215.09,215.08,55.47502677]
[1758676502868,1e-08,215.09,215.08,18.93502677]
[1758676503069,1e-08,215.09,215.08,56.89657355]
[1758676504793,1e-08,215.09,215.08,82.89657355]
[1758676505873,1e-08,215.09,215.08,96.87444193]
[1758676506085,1e-08,215.09,215.08,58.91289515]
[1758676506276,1e-08,215.09,215.08,82.89657355]
[1758676506479,1e-08,215.09,215.08,84.76037617]
[1758676506996,1e-08,215.09,215.08,58.76037617]
[1758676508582,1e-08,215.09,215.08,21.55037617]
[1758676508786,1e-08,215.09,215.08,58.07037617]
[1758676510094,1e-08,215.09,215.08,58.76037617]
[1758676514208,1e-08,215.16,215.08,58.76037617]
[1758676514379,1e-08,215.16,215.15,41.03714079]
[1758676514579,1e-08,215.16,215.15,77.55714079]
[1758676514897,1e-08,215.16,215.15,96.89837182]
[1758676515290,1e-08,215.16,215.15,102.66455894]
[1758676515505,1e-08,215.16,215.15,116.66455894]
[1758676516283,0.67,215.28,215.16,13.59559401]
[1758676516483,0.67,215.28,215.24,1.44154678]
[1758676516800,0.67,215.27,215.25,36.5]
[1758676516988,1.44154678,215.3,215.26,36.5]
[1758676516989,26.0,215.3,215.26,36.5]
[1758676517300,27.44154678,215.3,215.26,36.5]
[1758676517474,0.67,215.29,215.26,36.5]
[1758676517676,0.67,215.28,215.26,36.5]
[1758676518898,27.44154678,215.31,215.25,4.64565315]
[1758676519104,0.67,215.27,215.26,36.5]
[1758676519799,2.43178333,215.36,215.26,36.5]
[1758676519800,0.67,215.31,215.26,36.5]
[1758676519990,0.67,215.3,215.26,36.5]
[1758676520581,0.7,215.29,215.25,16.260055]
[1758676520787,0.7,215.28,215.26,36.5]
[1758676520997,1.44154678,215.3,215.27,4.64532912]
[1758676521193,1.44154678,215.3,215.22,1.44154678]
[1758676521396,1.44154678,215.24,215.21,13.97005751]
[1758676521703,1.44154678,215.22,215.21,36.5]
[1758676522011,0.7,215.22,215.21,36.5]
[1758676522414,2.14154678,215.22,215.13,13.97005751]
[1758676522590,2.14154678,215.22,215.12,16.26998884]
[1758676522591,1.44154678,215.19,215.14,36.5]
[1758676522790,0.7,215.18,215.14,36.5]
[1758676523010,0.7,215.17,215.15,4.64792005]
[1758676523312,26.0,215.21,215.15,4.64792005]
[1758676523484,1.44154678,215.22,215.15,4.64792005]
[1758676523685,0.7,215.24,215.15,16.26772018]
[1758676523884,1.44154678,215.22,215.15,16.26772018]
[1758676524708,1.44154678,215.2,215.15,16.26772018]
[1758676524908,1.44154678,215.18,215.16,36.48]
[1758676525095,0.7,215.18,215.16,41.12755252]
[1758676525411,0.7,215.17,215.16,41.12755252]
[1758676526120,2.14154678,215.17,215.12,16.26998884]
[1758676526286,0.7,215.16,215.13,36.48]
[1758676526491,0.7,215.15,215.13,36.48]
[1758676526790,0.7,215.15,215.07,24.68902856]
[1758676526791,0.7,215.14,215.08,11.62320321]
[1758676526994,1.44154678,215.11,215.05,16.27495337]
[1758676527292,0.7,215.1,215.06,36.48]
[1758676527617,0.7,215.09,215.06,36.48]
[1758676527998,0.7,215.08,215.05,4.65008137]
[1758676528208,2.14154678,215.07,215.01,36.48]
[1758676528522,26.0,215.1,215.01,36.48]
[1758676528523,1.44154678,215.04,215.01,36.48]
[1758676528688,0.7,215.07,215.01,36.48]
[1758676528884,0.7,215.09,215.01,38.61154678]
[1758676529097,0.7,215.09,215.02,16.27755557]
[1758676529317,1.44154678,215.08,215.02,16.27755557]
[1758676530704,26.0,215.12,215.03,36.48]
[1758676530705,1.44154678,215.06,215.03,36.48]
[1758676530912,0.7,215.05,215.03,36.48]
[1758676531213,2.14154678,215.04,215.03,41.13048667]
[1758676531905,1.44154678,215.04,215.0,4.65116279]
[1758676532105,0.7,215.03,215.0,4.65116279]
[1758676532401,0.7,215.02,215.0,4.65116279]
[1758676532607,1.44154678,215.04,215.0,4.65116279]
[1758676532927,2.14154678,215.04,215.0,16.27906976]
[1758676533109,0.7,215.03,215.0,4.65116279]
[1758676533499,0.7,215.02,215.0,4.65116279]
[1758676533712,0.7,215.01,215.0,4.65116279]
[1758676533922,1.44154678,215.04,215.0,4.65116279]
[1758676534229,26.0,215.01,214.96,4.65202828]
[1758676534408,1.44154678,214.98,214.96,4.65202828]
[1758676534801,2.14154678,215.0,214.96,16.28209899]
[1758676535001,26.0,215.04,214.97,38.63154678]
[1758676535222,2.14154678,215.06,214.98,0.69]
[1758676536000,0.7,215.1,215.01,1.44154678]
[1758676536241,0.7,215.09,215.03,16.27679858]
[1758676536506,1.44154678,215.06,215.03,16.27679858]
[1758676536823,0.7,215.05,215.03,4.65051388]
[1758676537034,1.44154678,215.06,215.03,4.65051388]
[1758676537330,26.0,215.09,215.03,16.96679858]
[1758676538022,2.14154678,215.1,215.03,16.96679858]
[1758676538738,1.44154678,215.08,215.03,16.27679858]
[1758676538922,0.7,215.09,215.03,16.27679858]
[1758676538923,0.7,215.17,215.07,1.44154678]
[1758676539226,1.44154678,215.19,215.11,1.44154678]
[1758676539433,1.44154678,215.19,215.12,36.5]
[1758676539605,1.44154678,215.21,215.13,2.13154678]
[1758676539804,2.14154678,215.23,215.14,0.69]
[1758676539999,0.7,215.23,215.15,1.44154678]
[1758676540206,2.14154678,215.25,215.17,17.70775489]
[1758676540407,0.7,215.25,215.19,1.44154678]
[1758676540611,0.7,215.27,215.2,36.54]
[1758676540826,213.9,215.39,215.21,1.44154678]
[1758676540827,0.7,215.29,215.21,1.44154678]
[1758676541034,0.7,215.29,215.23,1.44154678]
[1758676541332,2.14154678,215.31,215.23,1.44154678]
[1758676541834,0.7,215.31,215.23,16.26167355]
[1758676542128,2.14154678,215.31,215.24,0.69]
[1758676542432,2.14154678,215.31,215.25,36.54]
[1758676542617,3.4593008,215.29,215.25,36.54]
[1758676543426,3.4593008,215.29,215.25,37.23]
[1758676543917,3.4593008,215.29,215.26,16.25940722]
[1758676544838,4.1593008,215.31,215.26,16.25940722]
[1758676545138,72.1056287,216.38,215.27,17.74489481]
[1758676545139,4.1593008,215.37,215.27,17.74489481]
[1758676545311,4.1593008,215.37,215.28,0.69]
[1758676545507,4.1593008,215.37,215.29,36.58]
[1758676545928,4.1593008,215.37,215.3,0.69]
[1758676546241,3.4593008,215.38,215.31,16.2556314]
[1758676546607,5.29634768,215.38,215.32,0.69]
[1758676546809,50.13559401,215.46,215.33,36.56]
[1758676546810,26.0,215.42,215.33,36.56]
[1758676547011,5.29634768,215.39,215.33,36.56]
[1758676547446,0.7,215.42,215.34,0.69]
[1758676547649,5.29634768,215.41,215.34,0.69]
[1758676548262,5.29634768,215.41,215.35,16.25261202]
[1758676548430,0.7,215.42,215.35,16.25261202]
[1758676548628,5.29634768,215.4,215.35,16.25261202]
[1758676549042,5.29634768,215.4,215.35,16.94261202]
[1758676549349,0.7,215.39,215.35,41.18360343]
[1758676549935,5.29634768,215.4,215.35,41.18360343]
[1758676550143,5.29634768,215.4,215.35,41.87360343]
[1758676550347,5.29634768,215.4,215.35,53.48261202]
[1758676550531,6.00634768,215.4,215.35,53.48261202]
[1758676551350,26.0,215.43,215.36,0.66]
[1758676551351,26.71,215.43,215.36,0.66]
[1758676551551,5.29634768,215.42,215.36,0.66]
[1758676552134,5.29634768,215.43,215.36,0.66]
[1758676552446,5.29634768,215.41,215.35,16.25261202]
[1758676552643,5.29634768,215.39,215.36,36.52]
[1758676553022,6.00634768,215.39,215.35,4.64360343]
[1758676553847,5.29634768,215.41,215.35,16.25261202]
[1758676554055,5.29634768,215.41,215.36,0.66]
[1758676554241,5.29634768,215.42,215.37,0.66]
[1758676554552,5.29634768,215.42,215.38,4.64295663]
[1758676554553,6.00634768,215.42,215.38,4.64295663]
[1758676554857,5.29634768,215.4,215.36,41.14328951]
[1758676555022,5.29634768,215.4,215.36,4.64328951]
[1758676555229,5.29634768,215.38,215.35,36.5]
[1758676556549,6.00634768,215.38,215.35,36.5]
[1758676556852,6.00634768,215.38,215.35,41.14353199]
[1758676557645,5.29634768,215.38,215.35,41.14353199]
[1758676557841,26.71,215.41,215.35,41.14353199]
[1758676558033,5.29634768,215.4,215.35,52.75254058]
[1758676558240,6.00634768,215.4,215.35,41.14353199]
[1758676558550,0.71,215.39,215.35,41.14353199]
[1758676558760,0.71,215.39,215.35,4.64353199]
[1758676559057,0.71,215.39,215.35,41.12353199]
[1758676559554,5.29634768,215.4,215.35,41.12353199]
[1758676559760,6.00634768,215.4,215.35,41.12353199]
[1758676560266,0.71,215.39,215.35,4.64353199]
[1758676560563,6.00634768,215.38,215.34,36.48]
[1758676560730,26.0,215.41,215.34,36.48]
[1758676561057,50.07559401,215.49,215.35,0.66]
[1758676561058,31.29634768,215.42,215.35,0.66]
[1758676562568,2.24614768,215.41,215.36,16.25185734]
[1758676562781,2.24614768,215.43,215.37,0.66]
[1758676564644,2.24614768,215.43,215.38,4.64295663]
[1758676564843,0.71,215.42,215.38,4.64295663]
[1758676565044,2.24614768,215.41,215.38,4.64295663]
[1758676565247,0.71,215.42,215.38,4.64295663]
[1758676565464,2.24614768,215.41,215.38,4.64295663]
[1758676565951,2.95614768,215.41,215.38,4.64295663]
[1758676567859,2.95614768,215.41,215.36,11.60846953]
[1758676568069,2.24614768,215.39,215.35,36.46]
[1758676568360,2.24614768,215.39,215.33,4.64403473]
[1758676568361,0.71,215.38,215.34,11.60954769]
[1758676568658,0.71,215.38,215.34,48.06954769]
[1758676568866,2.24614768,215.39,215.35,0.66]
[1758676569056,2.24614768,215.43,215.36,0.66]
[1758676569570,2.24614768,215.41,215.37,36.46]
[1758676569771,0.71,215.4,215.37,36.46]
[1758676569947,0.71,215.4,215.36,36.46]
[1758676570267,2.95614768,215.39,215.36,36.46]
[1758676570567,2.24614768,215.37,215.34,4.64381907]
[1758676570762,0.71,215.36,215.34,4.64381907]
[1758676571266,2.24614768,215.37,215.32,4.64404651]
[1758676571444,2.95614768,215.35,215.31,36.46]
[1758676571651,2.24614768,215.33,215.24,0.66]
[1758676571973,2.24614768,215.29,215.24,36.48]
[1758676572155,2.24614768,215.28,215.24,36.48]
[1758676572956,2.95614768,215.28,215.24,36.48]
[1758676573157,2.90614768,215.28,215.24,36.48]
[1758676573352,0.66,215.27,215.22,16.26231505]
[1758676573666,2.90614768,215.26,215.22,4.64640832]
[1758676573846,0.66,215.25,215.22,4.64640832]
[1758676574050,0.66,215.24,215.22,4.64640832]
[1758676574675,2.90614768,215.23,215.2,4.64684014]
[1758676575458,0.66,215.26,215.2,4.64684014]
[1758676575765,2.24614768,215.26,215.21,0.71]
[1758676575966,2.24614768,215.28,215.23,4.64619244]
[1758676576157,2.90614768,215.28,215.23,4.64619244]
[1758676576465,2.90614768,215.28,215.23,16.26167355]
[1758676577259,2.24614768,215.3,215.24,0.71]
[1758676577466,2.24614768,215.32,215.24,0.71]
[1758676577664,2.90614768,215.33,215.24,2.95614768]
[1758676577869,2.90614768,215.33,215.25,0.71]
[1758676578078,2.90614768,215.33,215.26,36.48]